fUST/lending_fUST_20250724
["ID","MTS","AMOUNT","RATE_DAILY","PERIOD"]
[374461545,1753309844665,-460.0,0.00019452,2]
[374461547,1753309844675,-302.53629265,0.00019452,2]
[374461549,1753309844684,-460.0,0.00019452,2]
[374461551,1753309844693,-460.0,0.00019452,2]
[374461553,1753309844703,-580.0096567,0.00019452,2]
[374461555,1753309844713,-460.0,0.00019452,2]
[374461557,1753309844723,-460.0,0.00019452,2]
[374461559,1753309844732,-460.0,0.00019452,2]
[374461561,1753309844742,-460.0,0.00019452,2]
[374461563,1753309844752,-460.0,0.00019452,2]
[374461565,1753309844761,-460.0,0.00019452,2]
[374461567,1753309844771,-460.0,0.00019452,2]
[374461569,1753309844780,-460.0,0.00019452,2]
[374461571,1753309844790,-460.0,0.00019452,2]
[374461573,1753309844799,-346.75894481,0.00019452,2]
[374461575,1753309844809,-460.0,0.00019452,2]
[374461577,1753309844818,-460.0,0.00019452,2]
[374461579,1753309844827,-200.04322058,0.00019452,2]
[374461581,1753309844838,-460.0,0.00019452,2]
[374461583,1753309844848,-460.0,0.00019452,2]
[374461585,1753309844857,-460.0,0.00019452,2]
[374461587,1753309844867,-460.0,0.00019452,2]
[374461589,1753309844877,-519.30453808,0.00019452,2]
[374461591,1753309844886,-460.0,0.00019452,2]
[374461593,1753309844896,-460.0,0.00019452,2]
[374461595,1753309844905,-460.0,0.00019452,2]
[374461597,1753309844915,-460.0,0.00019452,2]
[374461599,1753309844924,-460.0,0.00019452,2]
[374461601,1753309844934,-460.0,0.00019452,2]
[374461603,1753309844944,-651.03,0.00019452,2]
[374461605,1753309844954,-460.0,0.00019452,2]
[374461607,1753309844965,-460.0,0.00019452,2]
[374461609,1753309844974,-460.0,0.00019452,2]
[374461611,1753309844984,-460.0,0.00019452,2]
[374461613,1753309844997,-460.0,0.00019452,2]
[374461615,1753309845007,-910.49215017,0.00019452,2]
[374461617,1753309845016,-460.0,0.00019452,2]
[374461619,1753309845026,-460.0,0.00019452,2]
[374461621,1753309845035,-460.0,0.00019452,2]
[374461623,1753309845044,-460.0,0.00019452,2]
[374461625,1753309845054,-460.0,0.00019452,2]
[374461627,1753309845064,-460.0,0.00019452,2]
[374461629,1753309845074,-460.0,0.00019452,2]
[374461631,1753309845084,-460.0,0.00019452,2]
[374461633,1753309845093,-4493.64,0.00019452,2]
[374461635,1753309845102,-460.0,0.00019452,2]
[374461637,1753309845112,-460.0,0.00019452,2]
[374461639,1753309845121,-460.0,0.00019452,2]
[374461641,1753309845130,-460.0,0.00019452,2]
[374461643,1753309845140,-460.0,0.00019452,2]
[374461645,1753309845149,-460.0,0.00019452,2]
[374461647,1753309845159,-460.0,0.00019452,2]
[374461649,1753309845168,-548.68092052,0.00019452,2]
[374461651,1753309845178,-460.0,0.00019452,2]
[374461653,1753309845188,-460.0,0.00019452,2]
[374461655,1753309845197,-460.0,0.00019452,2]
[374461657,1753309845207,-1123.71,0.00019452,2]
[374461659,1753309845217,-372.94544657,0.00019452,2]
[374461661,1753309845227,-460.0,0.00019452,2]
[374461663,1753309845236,-460.0,0.00019452,2]
[374461665,1753309845246,-460.0,0.00019452,2]
[374461667,1753309845255,-460.0,0.00019452,2]
[374461669,1753309845264,-460.0,0.00019452,2]
[374461671,1753309845274,-460.0,0.00019452,2]
[374461673,1753309845283,-460.0,0.00019452,2]
[374461675,1753309845293,-460.0,0.00019452,2]
[374461677,1753309845302,-460.0,0.00019452,2]
[374461679,1753309845311,-460.0,0.00019452,2]
[374461681,1753309845321,-460.0,0.00019452,2]
[374461683,1753309845331,-460.0,0.00019452,2]
[374461685,1753309845340,-460.0,0.00019452,2]
[374461687,1753309845350,-460.0,0.00019452,2]
[374461689,1753309845360,-460.0,0.00019452,2]
[374461691,1753309845369,-460.0,0.00019452,2]
[374461693,1753309845379,-970.39,0.00019452,2]
[374461695,1753309845388,-460.0,0.00019452,2]
[374461698,1753309845398,-460.0,0.00019452,2]
[374461700,1753309845407,-460.0,0.00019452,2]
[374461701,1753309845416,-460.0,0.00019452,2]
[374461703,1753309845426,-460.0,0.00019452,2]
[374461706,1753309845435,-460.0,0.00019452,2]
[374461708,1753309845445,-460.0,0.00019452,2]
[374461709,1753309845454,-155.48,0.00019452,2]
[374461712,1753309845464,-460.0,0.00019452,2]
[374461713,1753309845474,-460.0,0.00019452,2]
[374461715,1753309845484,-290.46359959,0.00019452,2]
[374461717,1753309845493,-518.40982406,0.00019452,2]
[374461719,1753309845502,-460.0,0.00019452,2]
[374461721,1753309845511,-460.0,0.00019452,2]
[374461723,1753309845521,-578.76,0.00019452,2]
[374461725,1753309845531,-460.0,0.00019452,2]
[374461727,1753309845540,-460.0,0.00019452,2]
[374461729,1753309845549,-460.0,0.00019452,2]
[374461731,1753309845559,-460.0,0.00019452,2]
[374461733,1753309845568,-460.0,0.00019452,2]
[374461735,1753309845577,-460.0,0.00019452,2]
[374461737,1753309845587,-460.0,0.00019452,2]
[374461739,1753309845596,-460.0,0.00019452,2]
[374461741,1753309845606,-460.0,0.00019452,2]
[374461743,1753309845615,-460.0,0.00019452,2]
[374461745,1753309845624,-460.0,0.00019452,2]
[374461747,1753309845634,-460.0,0.00019452,2]
[374461749,1753309845643,-460.0,0.00019452,2]
[374461751,1753309845653,-460.0,0.00019452,2]
[374461753,1753309845662,-460.0,0.00019452,2]
[374461755,1753309845672,-460.0,0.00019452,2]
[374461757,1753309845681,-855.8,0.00019452,2]
[374461759,1753309845691,-460.0,0.00019452,2]
[374461761,1753309845700,-460.0,0.00019452,2]
[374461763,1753309845711,-460.0,0.00019452,2]
[374461765,1753309845721,-460.0,0.00019452,2]
[374461767,1753309845731,-460.0,0.00019452,2]
[374461769,1753309845741,-507.58,0.00019452,2]
[374461771,1753309845750,-460.0,0.00019452,2]
[374461773,1753309845759,-460.0,0.00019452,2]
[374461775,1753309845769,-460.0,0.00019452,2]
[374461777,1753309845779,-460.0,0.00019452,2]
[374461779,1753309845788,-460.0,0.00019452,2]
[374461781,1753309845798,-527.39,0.00019452,2]
[374461783,1753309845807,-1646.73,0.00019452,2]
[374461785,1753309845817,-579.68,0.00019452,2]
[374461787,1753309845826,-460.0,0.00019452,2]
[374461789,1753309845836,-460.0,0.00019452,2]
[374461791,1753309845846,-460.0,0.00019452,2]
[374461793,1753309845855,-460.0,0.00019452,2]
[374461795,1753309845865,-460.0,0.00019452,2]
[374461797,1753309845875,-491.17,0.00019452,2]
[374461799,1753309845885,-460.0,0.00019452,2]
[374461801,1753309845895,-460.0,0.00019452,2]
[374461803,1753309845905,-460.0,0.00019452,2]
[374461805,1753309845917,-460.0,0.00019452,2]
[374461807,1753309845927,-460.0,0.00019452,2]
[374461809,1753309845937,-460.0,0.00019452,2]
[374461811,1753309845947,-460.0,0.00019452,2]
[374461813,1753309845956,-500.0,0.00019473,2]
[374461815,1753309845967,-550.28578722,0.00019477,2]
[374461817,1753309845977,-504.2039147,0.00019721,2]
[374461820,1753309845989,-1000.0,0.00019721,2]
[374461822,1753309845999,-1000.0,0.00019721,2]
[374461824,1753309846008,-1000.0,0.00019721,2]
[374461826,1753309846017,-1000.0,0.00019721,2]
[374461828,1753309846027,-1100.20592339,0.00019721,2]
[374461830,1753309846038,-188.86749796,0.00019726,2]
[374461832,1753309846047,-404.13151,0.00019726,2]
[374461834,1753309846057,-404.13151,0.00019726,2]
[374461836,1753309846068,-460.0,0.00019726,2]
[374461838,1753309846078,-151.0,0.00019726,2]
[374461840,1753309846088,-216.495096,0.00019726,2]
[374461842,1753309846098,-481.24664277,0.00019726,2]
[374461844,1753309846108,-460.0,0.00019726,2]
[374461846,1753309846118,-460.0,0.00019726,2]
[374461848,1753309846127,-151.68,0.00019726,2]
[374461850,1753309846137,-460.0,0.00019726,2]
[374461852,1753309846147,-460.0,0.00019726,2]
[374461854,1753309846157,-233.97,0.00019726,2]
[374461856,1753309846166,-460.0,0.00019726,2]
[374461858,1753309846176,-460.0,0.00019726,2]
[374461860,1753309846186,-460.0,0.00019726,2]
[374461862,1753309846196,-460.0,0.00019726,2]
[374461864,1753309846206,-460.0,0.00019726,2]
[374461866,1753309846217,-460.0,0.00019726,2]
[374461868,1753309846226,-460.0,0.00019726,2]
[374461870,1753309846235,-224.19,0.00019726,2]
[374461872,1753309846246,-460.0,0.00019726,2]
[374461874,1753309846255,-532.99036941,0.00019726,2]
[374461876,1753309846264,-460.0,0.00019726,2]
[374461878,1753309846274,-460.0,0.00019726,2]
[374461880,1753309846283,-460.0,0.00019726,2]
[374461882,1753309846293,-460.0,0.00019726,2]
[374461884,1753309846303,-460.0,0.00019726,2]
[374461886,1753309846312,-460.0,0.00019726,2]
[374461888,1753309846322,-651.03,0.00019726,2]
[374461903,1753309846331,-460.0,0.00019726,2]
[374461905,1753309846467,-460.0,0.00019726,2]
[374461907,1753309846477,-460.0,0.00019726,2]
[374461910,1753309846486,-460.0,0.00019726,2]
[374461912,1753309846496,-460.0,0.00019726,2]
[374461914,1753309846506,-4493.64,0.00019726,2]
[374461916,1753309846516,-460.0,0.00019726,2]
[374461918,1753309846526,-460.0,0.00019726,2]
[374461919,1753309846536,-460.0,0.00019726,2]
[374461922,1753309846546,-460.0,0.00019726,2]
[374461924,1753309846555,-460.0,0.00019726,2]
[374461925,1753309846564,-460.0,0.00019726,2]
[374461927,1753309846574,-1123.71,0.00019726,2]
[374461929,1753309846583,-408.86538466,0.00019726,2]
[374461930,1753309846593,-460.0,0.00019726,2]
[374461931,1753309846602,-460.0,0.00019726,2]
[374461932,1753309846611,-460.0,0.00019726,2]
[374461933,1753309846620,-460.0,0.00019726,2]
[374461934,1753309846630,-460.0,0.00019726,2]
[374461935,1753309846639,-460.0,0.00019726,2]
[374461936,1753309846648,-234.55229672,0.00019726,2]
[374461937,1753309846658,-367.54296886,0.00019726,2]
[374461938,1753309846667,-460.0,0.00019726,2]
[374461939,1753309846676,-460.0,0.00019726,2]
[374461940,1753309846685,-460.0,0.00019726,2]
[374461941,1753309846695,-460.0,0.00019726,2]
[374461942,1753309846704,-970.39,0.00019726,2]
[374461943,1753309846715,-460.0,0.00019726,2]
[374461944,1753309846724,-460.0,0.00019726,2]
[374461945,1753309846733,-460.0,0.00019726,2]
[374461946,1753309846743,-460.0,0.00019726,2]
[374461947,1753309846752,-460.0,0.00019726,2]
[374461948,1753309846761,-578.76,0.00019726,2]
[374461949,1753309846771,-460.0,0.00019726,2]
[374461950,1753309846780,-360.5132166,0.00019726,2]
[374461951,1753309846790,-460.0,0.00019726,2]
[374461952,1753309846799,-460.0,0.00019726,2]
[374461953,1753309846809,-460.0,0.00019726,2]
[374461955,1753309846818,-460.0,0.00019726,2]
[374461957,1753309846827,-460.0,0.00019726,2]
[374461959,1753309846837,-460.0,0.00019726,2]
[374461961,1753309846847,-460.0,0.00019726,2]
[374461963,1753309846863,-460.0,0.00019726,2]
[374461965,1753309846874,-295.10302758,0.00019726,2]
[374461967,1753309846884,-185.04,0.00019726,2]
[374461969,1753309846894,-460.0,0.00019726,2]
[374461971,1753309846903,-855.8,0.00019726,2]
[374461973,1753309846913,-460.0,0.00019726,2]
[374461975,1753309846922,-460.0,0.00019726,2]
[374461977,1753309846931,-460.0,0.00019726,2]
[374461979,1753309846940,-460.0,0.00019726,2]
[374461982,1753309846950,-460.0,0.00019726,2]
[374461984,1753309846959,-460.0,0.00019726,2]
[374461986,1753309846968,-460.0,0.00019726,2]
[374461988,1753309846977,-460.0,0.00019726,2]
[374461990,1753309846991,-460.0,0.00019726,2]
[374461992,1753309847000,-1646.73,0.00019726,2]
[374461994,1753309847009,-527.39,0.00019726,2]
[374461996,1753309847018,-579.68,0.00019726,2]
[374461998,1753309847028,-460.0,0.00019726,2]
[374462000,1753309847039,-196.37480375,0.00019726,2]
[374462002,1753309847048,-460.0,0.00019726,2]
[374462004,1753309847057,-460.0,0.00019726,2]
[374462006,1753309847068,-460.0,0.00019726,2]
[374462008,1753309847077,-460.0,0.00019726,2]
[374462009,1753309847088,-518.67455594,0.00019726,2]
[374462012,1753309847098,-179.76630381,0.00019988,2]
[374462013,1753309847108,-460.0,0.0002,2]
[374462015,1753309847118,-460.0,0.0002,2]
[374462017,1753309847127,-460.0,0.0002,2]
[374462019,1753309847137,-383.78026525,0.0002,2]
[374462021,1753309847147,-460.0,0.0002,2]
[374462023,1753309847156,-460.0,0.0002,2]
[374462025,1753309847166,-460.0,0.0002,2]
[374462027,1753309847175,-461.93,0.0002,2]
[374462029,1753309847186,-460.0,0.0002,2]
[374462031,1753309847195,-460.0,0.0002,2]
[374462033,1753309847205,-651.03,0.0002,2]
[374462035,1753309847215,-340.98,0.0002,2]
[374462037,1753309847224,-460.0,0.0002,2]
[374462039,1753309847233,-4493.64,0.0002,2]
[374462041,1753309847243,-460.0,0.0002,2]
[374462043,1753309847252,-460.0,0.0002,2]
[374462045,1753309847261,-460.0,0.0002,2]
[374462047,1753309847271,-460.0,0.0002,2]
[374462049,1753309847279,-460.0,0.0002,2]
[374462051,1753309847291,-460.0,0.0002,2]
[374462053,1753309847300,-1123.71,0.0002,2]
[374462055,1753309847310,-460.0,0.0002,2]
[374462057,1753309847319,-460.0,0.0002,2]
[374462059,1753309847328,-460.0,0.0002,2]
[374462061,1753309847337,-460.0,0.0002,2]
[374462063,1753309847347,-462.58,0.0002,2]
[374462065,1753309847356,-607.23507225,0.0002,2]
[374462067,1753309847364,-565.03,0.0002,2]
[374462069,1753309847374,-460.0,0.0002,2]
[374462071,1753309847383,-970.39,0.0002,2]
[374462073,1753309847392,-460.0,0.0002,2]
[374462074,1753309847401,-460.0,0.0002,2]
[374462076,1753309847411,-578.76,0.0002,2]
[374462078,1753309847423,-460.0,0.0002,2]
[374462080,1753309847433,-460.0,0.0002,2]
[374462082,1753309847442,-460.0,0.0002,2]
[374462084,1753309847451,-460.0,0.0002,2]
[374462086,1753309847461,-460.0,0.0002,2]
[374462088,1753309847470,-460.0,0.0002,2]
[374462091,1753309847480,-460.0,0.0002,2]
[374462092,1753309847489,-460.0,0.0002,2]
[374462094,1753309847498,-855.8,0.0002,2]
[374462096,1753309847507,-460.0,0.0002,2]
[374462098,1753309847517,-476.40030117,0.0002,2]
[374462100,1753309847526,-460.0,0.0002,2]
[374462102,1753309847535,-460.0,0.0002,2]
[374462104,1753309847544,-460.0,0.0002,2]
[374462106,1753309847553,-460.0,0.0002,2]
[374462108,1753309847563,-460.0,0.0002,2]
[374462110,1753309847572,-1646.73,0.0002,2]
[374462112,1753309847581,-527.39,0.0002,2]
[374462114,1753309847590,-579.68,0.0002,2]
[374462116,1753309847599,-460.0,0.0002,2]
[374462118,1753309847608,-504.54599321,0.0002,2]
[374462120,1753309847618,-460.0,0.0002,2]
[374462122,1753309847627,-1217.3045,0.00020173,2]
[374462124,1753309847637,-1217.3045,0.00020173,2]
[374462126,1753309847646,-151.0,0.00020173,2]
[374462128,1753309847656,-223.923673,0.00020187,2]
[374462130,1753309847665,-150.0,0.00020207,2]
[374462132,1753309847674,-1500.0,0.00020268,2]
[374462134,1753309847683,-1500.0,0.00020268,2]
[374462136,1753309847692,-1124.01322793,0.00020268,2]
[374462138,1753309847702,-1500.0,0.00020268,2]
[374462140,1753309847712,-460.0,0.00020273,2]
[374462142,1753309847721,-460.0,0.00020273,2]
[374462144,1753309847731,-460.0,0.00020273,2]
[374462146,1753309847740,-468.29342776,0.00020273,2]
[374462148,1753309847749,-403.28,0.00020273,2]
[374462149,1753309847758,-460.0,0.00020273,2]
[374462151,1753309847768,-460.0,0.00020273,2]
[374462153,1753309847777,-651.03,0.00020273,2]
[374462155,1753309847786,-4493.64,0.00020273,2]
[374462157,1753309847795,-460.0,0.00020273,2]
[374462159,1753309847805,-460.0,0.00020273,2]
[374462161,1753309847814,-308.07116419,0.00020273,2]
[374462163,1753309847823,-460.0,0.00020273,2]
[374462165,1753309847832,-437.45,0.00020273,2]
[374462167,1753309847842,-1123.71,0.00020273,2]
[374462169,1753309847851,-460.0,0.00020273,2]
[374462171,1753309847860,-460.0,0.00020273,2]
[374462173,1753309847870,-232.72,0.00020273,2]
[374462175,1753309847880,-460.0,0.00020273,2]
[374462177,1753309847889,-460.0,0.00020273,2]
[374462179,1753309847899,-970.39,0.00020273,2]
[374462181,1753309847908,-460.0,0.00020273,2]
[374462183,1753309847917,-578.76,0.00020273,2]
[374462185,1753309847926,-460.0,0.00020273,2]
[374462187,1753309847935,-460.0,0.00020273,2]
[374462189,1753309847945,-460.0,0.00020273,2]
[374462191,1753309847954,-465.12,0.00020273,2]
[374462193,1753309847963,-460.0,0.00020273,2]
[374462195,1753309847973,-583.72,0.00020273,2]
[374462197,1753309847982,-855.8,0.00020273,2]
[374462199,1753309847996,-460.0,0.00020273,2]
[374462201,1753309848005,-272.8,0.00020273,2]
[374462203,1753309848014,-1646.73,0.00020273,2]
[374462205,1753309848024,-527.39,0.00020273,2]
[374462207,1753309848035,-579.68,0.00020273,2]
[374462209,1753309848044,-460.0,0.00020273,2]
[374462211,1753309848053,-460.0,0.00020273,2]
[374462213,1753309848064,-331.083249,0.00020469,2]
[374462215,1753309848073,-331.083249,0.00020469,2]
[374462217,1753309848082,-174.431401,0.00020469,2]
[374462219,1753309848092,-174.431401,0.00020469,2]
[374462221,1753309848100,-1118.227157,0.00020469,2]
[374462223,1753309848110,-1118.227157,0.00020469,2]
[374462224,1753309848119,-1219.407594,0.00020469,2]
[374462226,1753309848128,-1219.407594,0.00020469,2]
[374462228,1753309848137,-404.13151,0.00020469,2]
[374462230,1753309848146,-404.13151,0.00020469,2]
[374462232,1753309848156,-151.0,0.00020469,2]
[374462234,1753309848165,-504.97,0.00020469,2]
[374462236,1753309848174,-460.0,0.00020469,2]
[374462238,1753309848184,-658.55560716,0.00020509,2]
[374462240,1753309848193,-3337.46,0.00020538,3]
[374462242,1753309848203,-1668.72,0.00020538,3]
[374462244,1753309848213,-1112.48,0.00020538,3]
[374462246,1753309848222,-1112.48,0.00020538,3]
[374462248,1753309848231,-12622.36869388,0.00020538,2]
[374462250,1753309848240,-215.84326551,0.00020538,2]
[374462252,1753309848250,-160.0,0.00020538,2]
[374462254,1753309848259,-840.06856235,0.00020538,2]
[374462256,1753309848268,-160.0,0.00020539,2]
[374462258,1753309848277,-160.0,0.00020539,2]
[374462260,1753309848287,-160.0,0.00020539,2]
[374462262,1753309848296,-231.11583447,0.00020539,2]
[374462264,1753309848306,-160.0,0.00020539,2]
[374462266,1753309848315,-160.0,0.00020539,2]
[374462268,1753309848325,-460.0,0.00020547,2]
[374462270,1753309848334,-460.0,0.00020547,2]
[374462272,1753309848344,-460.0,0.00020547,2]
[374462274,1753309848354,-651.03,0.00020547,2]
[374462276,1753309848363,-4493.64,0.00020547,2]
[374462278,1753309848373,-460.0,0.00020547,2]
[374462280,1753309848382,-460.0,0.00020547,2]
[374462282,1753309848391,-1123.71,0.00020547,2]
[374462284,1753309848401,-460.0,0.00020547,2]
[374462286,1753309848411,-460.0,0.00020547,2]
[374462288,1753309848421,-388.92,0.00020547,2]
[374462290,1753309848431,-402.16,0.00020547,2]
[374462292,1753309848441,-970.39,0.00020547,2]
[374462294,1753309848450,-578.76,0.00020547,2]
[374462296,1753309848460,-460.0,0.00020547,2]
[374462298,1753309848470,-855.8,0.00020547,2]
[374462300,1753309848487,-515.76,0.00020547,2]
[374462302,1753309848504,-1646.73,0.00020547,2]
[374462304,1753309848514,-527.39,0.00020547,2]
[374462306,1753309848524,-579.68,0.00020547,2]
[374462308,1753309848533,-460.0,0.00020547,2]
[374462310,1753309848542,-500.0,0.00020618,2]
[374462312,1753309848551,-394.699,0.00020738,2]
[374462314,1753309848561,-1217.3045,0.00020743,2]
[374462316,1753309848570,-1217.3045,0.00020743,2]
[374462318,1753309848579,-151.0,0.00020743,2]
[374462320,1753309848588,-504.97,0.00020743,2]
[374462322,1753309848598,-604.64,0.00020743,2]
[374462324,1753309848607,-1000.0,0.00020816,2]
[374462326,1753309848618,-500.0,0.00020816,2]
[374462328,1753309848627,-460.0,0.00020821,2]
[374462330,1753309848636,-460.0,0.00020821,2]
[374462332,1753309848646,-250.66,0.00020821,2]
[374462334,1753309848655,-651.03,0.00020821,2]
[374462336,1753309848665,-4493.64,0.00020821,2]
[374462338,1753309848674,-460.0,0.00020821,2]
[374462340,1753309848683,-360.22,0.00020821,2]
[374462342,1753309848692,-1123.71,0.00020821,2]
[374462344,1753309848701,-289.25565317,0.00020821,2]
[374462346,1753309848711,-214.66,0.00020821,2]
[374462348,1753309848721,-970.39,0.00020821,2]
[374462350,1753309848730,-578.76,0.00020821,2]
[374462352,1753309848739,-460.0,0.00020821,2]
[374462354,1753309848748,-855.8,0.00020821,2]
[374462355,1753309848758,-1646.73,0.00020821,2]
[374462357,1753309848767,-527.39,0.00020821,2]
[374462360,1753309848776,-579.68,0.00020821,2]
[374462362,1753309848786,-460.0,0.00020821,2]
[374462364,1753309848795,-250.12389181,0.000209,2]
[374462365,1753309848805,-500.0,0.00020973,2]
[374462368,1753309848814,-500.0,0.00020973,2]
[374462369,1753309848824,-500.0,0.00020973,2]
[374462371,1753309848833,-270.26850122,0.00021,2]
[374462373,1753309848842,-679.97430302,0.00021,10]
[374462376,1753309848851,-25263.41684961,0.00021,2]
[374462377,1753309848861,-145153.22766754,0.00021,3]
[374462379,1753309848878,-151.0,0.00021,2]
[374462381,1753309848887,-504.97,0.00021017,2]
[374462383,1753309848896,-331.083249,0.00021095,2]
[374462385,1753309848906,-331.083249,0.00021095,2]
[374462387,1753309848915,-174.431401,0.00021095,2]
[374462389,1753309848924,-174.431401,0.00021095,2]
[374462391,1753309848933,-1118.227157,0.00021095,2]
[374462393,1753309848943,-1118.227157,0.00021095,2]
[374462395,1753309848952,-1219.407594,0.00021095,2]
[374462397,1753309848961,-1219.407594,0.00021095,2]
[374462399,1753309848971,-404.13151,0.00021095,2]
[374462401,1753309848980,-404.13151,0.00021095,2]
[374462403,1753309848993,-151.0,0.00021095,2]
[374462405,1753309849003,-460.0,0.00021095,2]
[374462407,1753309849012,-460.0,0.00021095,2]
[374462409,1753309849021,-651.03,0.00021095,2]
[374462411,1753309849032,-4493.64,0.00021095,2]
[374462413,1753309849042,-460.0,0.00021095,2]
[374462415,1753309849052,-1123.71,0.00021095,2]
[374462417,1753309849061,-970.39,0.00021095,2]
[374462419,1753309849071,-578.76,0.00021095,2]
[374462421,1753309849080,-460.0,0.00021095,2]
[374462423,1753309849090,-855.8,0.00021095,2]
[374462425,1753309849100,-1646.73,0.00021095,2]
[374462427,1753309849110,-527.39,0.00021095,2]
[374462429,1753309849119,-579.68,0.00021095,2]
[374462431,1753309849128,-460.0,0.00021095,2]
[374462433,1753309849138,-150.0,0.0002117,2]
[374462435,1753309849147,-151.0,0.00021291,2]
[374462437,1753309849156,-504.97,0.00021291,2]
[374462438,1753309849166,-800.0,0.00021293,2]
[374462439,1753309849175,-460.0,0.00021369,2]
[374462440,1753309849184,-460.0,0.00021369,2]
[374462441,1753309849194,-651.03,0.00021369,2]
[374462442,1753309849203,-4493.64,0.00021369,2]
[374462443,1753309849212,-460.0,0.00021369,2]
[374462444,1753309849221,-1123.71,0.00021369,2]
[374462445,1753309849231,-970.39,0.00021369,2]
[374462446,1753309849240,-578.76,0.00021369,2]
[374462447,1753309849249,-460.0,0.00021369,2]
[374462449,1753309849259,-239.47009957,0.00021369,2]
[374462473,1753309849468,-616.32990043,0.00021369,2]
[374462475,1753309849478,-1646.73,0.00021369,2]
[374462477,1753309849488,-579.68,0.00021369,2]
[374462479,1753309849498,-527.39,0.00021369,2]
[374462481,1753309849508,-460.0,0.00021369,2]
[374462483,1753309849517,-500.0,0.00021442,2]
[374462485,1753309849527,-193.5,0.00021457,5]
[374462487,1753309849536,-10319.62612536,0.000215,2]
[374462489,1753309849546,-1000.0,0.00021521,2]
[374462491,1753309849555,-1000.0,0.00021521,2]
[374462493,1753309849564,-151.0,0.00021565,2]
[374462495,1753309849574,-504.97,0.00021565,2]
[374462497,1753309849583,-1217.3045,0.00021605,2]
[374462499,1753309849593,-1217.3045,0.00021605,2]
[374462501,1753309849602,-151.0,0.00021605,2]
[374462503,1753309849612,-215.0738,0.00021605,2]
[374462505,1753309849622,-404.13151,0.00021643,2]
[374462507,1753309849631,-404.13151,0.00021643,2]
[374462509,1753309849641,-151.0,0.00021643,2]
[374462511,1753309849651,-460.0,0.00021643,2]
[374462513,1753309849661,-460.0,0.00021643,2]
[374462515,1753309849670,-651.03,0.00021643,2]
[374462517,1753309849680,-4493.64,0.00021643,2]
[374462519,1753309849689,-460.0,0.00021643,2]
[374462521,1753309849698,-1123.71,0.00021643,2]
[374462522,1753309849707,-970.39,0.00021643,2]
[374462525,1753309849718,-578.76,0.00021643,2]
[374462526,1753309849727,-460.0,0.00021643,2]
[374462528,1753309849736,-855.8,0.00021643,2]
[374462530,1753309849746,-1646.73,0.00021643,2]
[374462533,1753309849756,-579.68,0.00021643,2]
[374462534,1753309849766,-527.39,0.00021643,2]
[374462537,1753309849776,-219.36416998,0.00021643,2]
[374462539,1753309849786,-174.431401,0.00021654,2]
[374462540,1753309849796,-174.431401,0.00021654,2]